bitfinex/quotes_ETHUSD_20240715
["timestamp","ask_amount","ask_price","bid_price","bid_amount"]
[1721017533503,3.67432197,3340.9,3340.4,2.69426]
[1721017533723,2.26328735,3340.8,3340.5,0.05486122]
[1721017533902,2.26328735,3340.7,3340.5,0.05486122]
[1721017534105,1.22652553,3340.6,3340.5,0.05486122]
[1721017534428,2.26325061,3340.6,3340.5,0.05486122]
[1721017534836,3.51927258,3340.6,3340.5,0.05486122]
[1721017535134,2.81659107,3340.6,3340.2,2.69442]
[1721017535306,3.51994962,3340.5,3340.2,2.69442]
[1721017535511,2.26325061,3340.4,3340.2,2.69442]
[1721017535717,2.26325061,3340.3,3340.2,2.69442]
[1721017536110,1.22652553,3340.3,3340.2,2.69442]
[1721017536414,1.03684263,3340.3,3340.2,2.69442]
[1721017536910,2.26345574,3340.3,3340.2,2.69442]
[1721017537646,1.25669901,3340.7,3340.4,2.69426]
[1721017537800,2.26327691,3340.6,3340.4,2.69426]
[1721017537999,2.26327691,3340.5,3340.4,2.69426]
[1721017538539,2.26327691,3340.5,3340.4,2.74913693]
[1721017538848,2.26327691,3340.5,3340.4,2.74915693]
[1721017540130,1.25669901,3340.8,3340.5,2.69419]
[1721017540500,2.4183,3340.9,3340.5,2.69419]
[1721017540501,2.26323019,3340.7,3340.6,0.05484192]
[1721017540899,2.26323019,3340.7,3340.6,2.74896192]
[1721017541098,2.26323019,3340.7,3340.6,5.44308192]
[1721017542002,1.25669901,3341.2,3341.1,2.69372]
[1721017542201,1.22636591,3341.2,3341.1,5.44219441]
[1721017542435,0.31343874,3341.5,3341.1,2.74847441]
[1721017542650,14.87276,3342.3,3341.1,2.74847441]
[1721017542651,2.26271939,3341.4,3341.2,0.05985222]
[1721017542801,1.25669901,3341.8,3341.5,2.69334]
[1721017543000,2.75222703,3342.0,3341.7,2.69323]
[1721017543238,1.25572578,3341.8,3341.7,2.69323]
[1721017543401,3.51833542,3341.8,3341.7,2.69323]
[1721017544206,2.26260964,3341.8,3341.7,2.69323]
[1721017546125,1.22619626,3341.8,3341.7,2.69323]
[1721017546355,2.26256856,3341.8,3341.7,2.69323]
[1721017546851,2.26256391,3341.8,3341.7,2.69323]
[1721017547255,1.2261763,3341.8,3341.7,2.69323]
[1721017547550,1.2261763,3341.9,3341.7,2.69323]
[1721017547722,1.2261763,3341.8,3341.7,2.69323]
[1721017548048,1.2261763,3341.9,3341.7,2.69323]
[1721017548557,1.2261763,3341.9,3341.8,0.05431427]
[1721017548918,1.2261763,3341.9,3341.7,2.69323]
[1721017549119,1.2261763,3341.9,3341.8,2.69315]
[1721017549318,0.31342703,3342.0,3341.9,5.38614]
[1721017549520,0.31342703,3342.0,3341.9,13.09421738]
[1721017549723,3.66602578,3343.1,3342.7,2.69243]
[1721017549950,2.26193171,3343.0,3342.9,2.6922]
[1721017550259,1.53923944,3343.0,3342.9,2.6922]
[1721017550467,0.31338309,3343.0,3342.9,2.74632192]
[1721017550679,0.31338309,3343.0,3342.9,2.80614418]
[1721017550881,0.31338309,3343.0,3342.9,2.74632192]
[1721017551368,2.4493,3343.5,3343.3,2.69191]
[1721017551566,2.639,3343.4,3343.3,2.69191]
[1721017551943,2.76265769,3343.5,3343.4,2.69187]
[1721017552283,0.31335769,3343.5,3343.4,2.69187]
[1721017552493,2.639,3343.7,3343.4,2.69187]
[1721017552494,2.639,3343.7,3343.6,2.6917]
[1721017553467,2.639,3343.7,3343.6,2.74569959]
[1721017560467,0.31332171,3343.8,3343.6,2.74569959]
[1721017561284,0.31332171,3343.8,3343.6,0.05399959]
[1721017561285,3.22620388,3343.8,3343.6,0.05399959]
[1721017561498,2.4229,3343.7,3343.1,2.6921]
[1721017561795,2.639,3343.4,3342.5,10.04251]
[1721017562096,2.639,3342.9,3342.3,2.69268]
[1721017562254,2.639,3342.9,3342.3,2.69275]
[1721017563196,2.9029,3342.9,3341.7,7.35]
[1721017563367,2.639,3342.5,3341.1,5.08126]
[1721017563567,2.639,3342.5,3341.8,2.69314]
[1721017564458,2.3408,3342.8,3342.0,2.69293]
[1721017565278,2.3408,3342.8,3342.0,2.75276577]
[1721017565662,2.3408,3342.8,3342.0,2.69293]
[1721017566062,2.3408,3342.8,3342.1,2.6929]
[1721017566466,2.3408,3342.8,3342.3,2.69274]
[1721017567299,2.3408,3342.8,3341.4,3.0]
[1721017567300,5.0041,3343.3,3342.6,2.69246]
[1721017567666,5.43981411,3343.3,3342.6,2.69246]
[1721017568106,0.31336601,3343.2,3342.6,2.69246]
[1721017571316,0.31336601,3343.2,3342.4,2.69262]
[1721017571467,0.31336601,3343.2,3342.7,0.05339201]
[1721017571663,0.31336601,3343.2,3342.5,2.69257]
[1721017571961,0.31336601,3343.2,3342.6,0.05340949]
[1721017572285,1.41429261,3343.2,3342.6,0.05340949]
[1721017572594,1.41429261,3343.2,3341.6,2.69324]
[1721017572595,2.69294,3342.1,3341.1,1.199673]
[1721017572808,2.639,3341.5,3341.1,1.199673]
[1721017573170,2.639,3341.5,3340.6,2.69412]
[1721017573470,2.639,3341.5,3340.5,0.31319877]
[1721017573674,2.39872599,3341.4,3340.5,0.31319877]
[1721017573865,2.74460055,3342.7,3340.6,2.316]
[1721017574067,2.3239,3342.7,3340.8,1.5]
[1721017574310,2.69216,3343.1,3341.9,2.69301]
[1721017574482,2.639,3342.8,3341.9,2.69301]
[1721017574679,2.639,3342.4,3341.4,2.69341]
[1721017574878,2.639,3342.4,3341.5,3.0]
[1721017575106,2.639,3342.4,3341.7,2.69322]
[1721017575302,2.639,3342.4,3341.8,5.69315]
[1721017575521,2.639,3342.4,3341.9,3.0]
[1721017575728,3.172116,3342.8,3341.9,3.0]
[1721017576013,3.90371847,3342.7,3341.9,3.0]
[1721017576212,2.639,3342.4,3341.6,3.0]
[1721017576508,2.639,3342.4,3341.6,5.69329]
[1721017577020,2.639,3342.4,3341.7,2.69323]
[1721017577307,0.55,3342.3,3341.8,3.0]
[1721017577480,0.55,3342.3,3341.6,3.0]
[1721017577691,0.55,3342.3,3341.5,3.0]
[1721017578202,2.639,3342.4,3341.5,3.0]
[1721017578498,2.3779,3342.6,3341.7,2.69322]
[1721017578687,3.26078856,3342.6,3341.7,2.69322]
[1721017580109,3.26078856,3342.6,3341.8,0.04479277]
[1721017580878,3.26078856,3342.6,3341.5,5.69338]
[1721017581172,3.26078856,3342.6,3341.6,0.04482776]
[1721017581898,3.26078856,3342.6,3341.6,2.73811776]
[1721017582104,2.639,3342.4,3341.7,3.0]
[1721017582322,2.639,3342.4,3341.8,0.04479277]
[1721017583284,2.95236436,3342.4,3341.8,0.04479277]
[1721017584376,0.07480412,3342.3,3341.8,0.04479277]
[1721017584779,0.07480412,3342.3,3341.4,3.0]
[1721017585019,0.97635955,3342.3,3341.9,0.04491877]
[1721017585216,2.3333,3342.1,3341.1,2.69371]
[1721017585515,3.189,3342.0,3341.2,3.0]
[1721017586896,2.639,3342.0,3341.2,3.0]
[1721017587191,2.3333,3342.1,3341.4,2.69344]
[1721017588586,3.22128998,3342.1,3341.2,5.69362]
[1721017588789,3.22128998,3342.1,3341.1,2.69371]
[1721017589120,2.639,3342.0,3341.1,2.69371]
[1721017589278,2.639,3342.0,3341.2,2.69361]
[1721017589484,3.27236861,3342.0,3341.2,2.69361]
[1721017590087,3.27236861,3342.0,3341.2,5.38722]
[1721017590309,2.639,3342.0,3341.2,5.38722]
[1721017590687,2.639,3342.0,3341.2,2.69361]
[1721017591202,1.0364753,3341.9,3341.2,2.69361]
[1721017591430,2.639,3342.0,3341.2,2.69362]
[1721017591741,1.03647184,3341.9,3341.2,2.69362]
[1721017592033,0.87016318,3341.9,3341.1,2.69372]
[1721017592324,0.94497629,3341.9,3340.7,10.35]
[1721017592533,0.94497629,3341.9,3340.2,17.42077]
[1721017592534,2.639,3341.6,3340.8,3.0]
[1721017592734,2.3333,3342.1,3341.3,2.69354]
[1721017592735,2.639,3342.0,3341.3,2.69354]
[1721017593030,1.03645566,3341.9,3341.1,2.69371]
[1721017593232,1.03645566,3341.8,3341.1,2.69371]
[1721017593533,2.639,3342.0,3341.1,2.69371]
[1721017593703,1.03651405,3341.9,3341.1,2.69371]
[1721017593899,1.03651405,3341.8,3341.1,2.69371]
[1721017594217,3.674797,3342.0,3341.1,2.69371]
[1721017594388,1.0365085,3341.9,3341.1,2.69371]
[1721017594589,1.0365085,3341.8,3341.0,2.69379]
[1721017594837,2.639,3341.6,3340.6,2.69407]
[1721017595021,2.639,3341.6,3340.7,3.0]
[1721017595188,1.0365085,3341.5,3340.7,3.0]
[1721017595689,2.639,3341.2,3340.0,10.04459]
[1721017595919,2.639,3341.2,3340.3,2.69436]
[1721017596158,3.42595139,3341.2,3340.4,5.69427]
[1721017596366,2.4622,3341.3,3340.5,2.69419]
[1721017596520,2.639,3341.2,3340.4,3.0]
[1721017596714,2.639,3341.2,3340.3,3.0]
[1721017597064,2.639,3341.2,3340.3,5.69436]
[1721017598529,2.639,3341.2,3340.4,0.04408401]
[1721017598759,3.687823,3341.2,3340.4,0.04408401]
[1721017599843,2.4622,3341.3,3340.4,2.73832401]
[1721017600340,2.4622,3341.3,3340.6,2.6941]
[1721017600547,2.4622,3341.3,3340.7,0.05985965]
[1721017600727,2.4622,3341.3,3340.7,0.10389115]
[1721017601962,0.31329741,3341.4,3340.9,2.69388]
[1721017602474,2.4622,3341.7,3341.0,0.04397899]
[1721017602757,3.2729574,3341.7,3341.0,0.04397899]
[1721017603256,1.03657517,3341.6,3341.0,0.04397899]
[1721017603468,2.639,3341.6,3341.0,0.04397899]
[1721017603850,2.69346,3341.5,3340.4,2.69424]
[1721017604027,3.24346,3341.5,3341.1,0.04396149]
[1721017604221,1.18487974,3341.4,3340.5,3.0]
[1721017604417,1.18487974,3341.4,3341.2,0.043944]
[1721017604621,1.18487974,3341.4,3340.5,3.0]
[1721017604821,1.18487974,3341.4,3341.3,0.04390859]
[1721017605130,1.18487974,3341.4,3340.5,3.0]
[1721017605318,3.24346,3341.5,3340.6,0.044049]
[1721017605871,1.03662291,3341.4,3340.6,0.044049]
[1721017606024,3.24346,3341.5,3340.6,0.044049]
[1721017606225,1.03661309,3341.4,3340.6,0.044049]
[1721017606453,3.24346,3341.5,3340.6,0.044049]
[1721017606651,2.22147796,3341.4,3340.6,0.044049]
[1721017606861,1.18486574,3341.4,3340.6,0.044049]
[1721017611226,2.639,3341.2,3340.6,0.044049]
[1721017613437,6.5498541,3341.1,3340.6,0.044049]
[1721017613626,2.639,3340.8,3340.1,2.69449]
[1721017613826,2.639,3340.8,3340.7,0.04405658]
[1721017614142,3.6757581,3340.8,3340.1,2.69449]
[1721017614335,2.639,3340.8,3340.2,0.04417635]
[1721017614540,2.639,3340.8,3340.1,2.69449]
[1721017614959,2.639,3340.8,3340.2,0.04417635]
[1721017615160,1.03677521,3340.7,3340.1,2.69449]
[1721017615460,2.639,3340.8,3340.1,2.69449]
[1721017615644,2.639,3340.8,3340.2,0.04417635]
[1721017617246,1.03677657,3340.7,3340.2,0.04417635]
[1721017617562,2.639,3340.8,3340.2,0.04417635]
[1721017617768,2.58270602,3341.1,3340.2,0.04417635]
[1721017617987,2.58270602,3341.1,3340.1,0.05987112]
[1721017617988,1.03669823,3341.0,3340.4,2.69421]
[1721017618137,0.31330602,3341.1,3340.8,2.69388]
[1721017618337,0.31330602,3341.1,3341.0,2.6938]
[1721017618867,0.31330602,3341.1,3341.0,2.73790973]
[1721017619648,0.31330602,3341.1,3341.0,0.04410973]
[1721017622134,1.349868,3341.1,3341.0,0.04410973]
[1721017623786,1.349868,3341.1,3340.8,2.69396]
[1721017623934,1.03656198,3341.0,3340.8,2.69396]
[1721017624139,0.31330602,3341.1,3340.3,2.69434]
[1721017624340,1.03660436,3341.0,3340.3,2.69434]
[1721017624594,0.31330602,3341.1,3340.4,2.69428]
[1721017624877,1.0366176,3341.0,3340.4,2.69428]
[1721017625187,1.0366176,3341.0,3340.1,2.69451]
[1721017625188,1.22644597,3341.0,3340.2,2.6944]
[1721017625343,1.03667969,3340.9,3340.3,5.69436]
[1721017625539,0.31330602,3341.1,3340.3,5.69436]
[1721017625779,2.26312479,3341.0,3340.3,5.69436]
[1721017625975,1.03667824,3340.9,3340.3,5.69436]
[1721017626144,1.03669481,3340.8,3340.3,5.69436]
[1721017626346,0.31330602,3341.1,3340.4,2.69425]
[1721017626547,2.26312641,3341.0,3340.4,2.69425]
[1721017626784,1.03667932,3340.9,3340.4,2.69425]
[1721017626946,0.31330602,3341.1,3340.4,2.69425]
[1721017627145,2.26308914,3341.0,3340.4,2.69425]
[1721017627495,1.03665991,3340.9,3340.4,2.69425]
[1721017627661,0.31330602,3341.1,3340.4,2.69425]
[1721017627980,2.26306986,3341.0,3340.4,2.69425]
[1721017628177,1.03664989,3340.9,3340.4,2.69425]
[1721017628492,0.31330602,3341.1,3340.4,2.69425]
[1721017628658,2.26308191,3341.0,3340.5,0.04267918]
[1721017628860,2.26308191,3340.9,3340.5,0.04267918]
[1721017629074,0.31330602,3341.1,3340.5,2.73682918]
[1721017629386,1.03661743,3341.0,3340.8,2.69393]
[1721017629548,0.31330602,3341.1,3340.8,2.69393]
[1721017629751,0.31330602,3341.1,3340.9,0.04260559]
[1721017630394,2.4513,3341.5,3340.9,0.04260559]
[1721017630550,2.26275435,3341.4,3340.9,0.04260559]
[1721017630896,2.26275435,3341.3,3340.8,2.69393]
[1721017631044,2.26275435,3341.2,3340.8,2.69393]
[1721017631245,1.22629909,3341.1,3340.9,0.04258416]
[1721017631440,1.25535833,3341.4,3340.9,0.04258416]
[1721017631662,2.76458519,3341.5,3340.9,0.04258416]
[1721017631859,1.25615183,3341.3,3340.8,2.69393]
[1721017632061,2.26293468,3341.2,3340.8,2.69393]
[1721017632292,2.26293468,3341.1,3340.9,0.0425538]
[1721017632579,1.22636779,3341.0,3340.9,0.0425538]
[1721017632780,1.22636779,3341.2,3340.9,0.0425538]
[1721017633006,2.26296558,3341.1,3340.9,0.0425538]
[1721017633213,1.22636779,3341.0,3340.9,0.0425538]
[1721017633515,2.48251962,3341.2,3340.9,0.0425538]
[1721017633719,2.2629757,3341.1,3340.9,0.0425538]
[1721017633924,1.22636779,3341.0,3340.9,0.0425538]
[1721017634107,1.22636779,3341.2,3340.9,0.0425538]
[1721017634278,2.26296757,3341.1,3340.9,0.0425538]
[1721017634483,1.22636779,3341.0,3340.9,0.0425538]
[1721017634910,1.25615183,3341.3,3340.6,2.69406]
[1721017635079,2.26293961,3341.2,3340.9,0.0425663]
[1721017635419,1.25615183,3341.3,3341.0,0.04254523]
[1721017635587,2.26302155,3341.2,3341.0,0.04254523]
[1721017635793,2.26302155,3341.1,3340.8,2.69394]
[1721017636029,1.25615183,3341.3,3340.8,2.69394]
[1721017636030,1.22639639,3341.0,3340.8,2.69394]
[1721017636198,1.22639639,3340.9,3340.8,2.69394]
[1721017636398,2.48254822,3341.2,3340.8,2.69394]
[1721017636701,2.2629697,3341.1,3340.8,2.69394]
[1721017636908,1.22639639,3341.0,3340.8,2.69394]
[1721017637123,1.22639639,3340.9,3340.8,2.69394]
[1721017637285,1.22639639,3341.1,3340.8,2.69394]
[1721017637489,1.25615183,3341.2,3340.8,2.69394]
[1721017637490,1.22639639,3341.0,3340.8,2.69394]
[1721017637823,1.25615183,3341.2,3340.6,2.6941]
[1721017637824,1.22639639,3340.9,3340.6,2.6941]
[1721017638119,1.25615183,3341.2,3340.5,2.69419]
[1721017638442,3.52058348,3341.1,3340.5,2.69419]
[1721017638581,2.26303668,3341.0,3340.5,2.69419]
[1721017638776,1.22640379,3340.9,3340.5,2.69419]
[1721017638981,1.22640379,3340.8,3340.5,2.69419]
[1721017639218,1.22640379,3340.7,3340.5,2.69419]
[1721017639386,1.2575468,3341.1,3340.5,2.69419]
[1721017639601,1.22637066,3341.0,3340.5,2.69419]
[1721017639988,1.22637066,3341.0,3340.6,2.69412]
[1721017640330,1.22637066,3341.0,3340.7,2.69402]
[1721017640884,1.22637066,3340.9,3340.7,2.69402]
[1721017641098,1.22637066,3340.9,3340.3,3.0]
[1721017641429,6.3721468,3340.8,3340.1,2.69452]
[1721017641726,2.484081,3340.7,3340.2,3.0]
[1721017642019,1.2265342,3340.6,3340.2,3.0]
[1721017643635,1.2265342,3340.6,3340.3,0.04272313]
[1721017644542,1.2265342,3340.5,3340.3,0.04272313]
[1721017644705,1.2265191,3340.4,3340.3,0.04272313]
[1721017644901,1.2265191,3340.6,3340.3,0.04272313]
[1721017645133,1.2265185,3340.5,3340.3,0.04272313]
[1721017645329,1.2265185,3340.4,3340.3,0.04272313]
[1721017646020,2.4840653,3340.7,3340.3,0.04272313]
[1721017646239,2.26328417,3340.6,3340.3,0.04272313]
[1721017646442,1.2265185,3340.5,3340.3,0.04272313]
[1721017646603,1.2265185,3340.4,3340.3,0.04272313]
[1721017646797,1.2265185,3340.6,3340.3,0.04272313]
[1721017647134,1.2265185,3340.5,3340.3,0.04272313]
[1721017647334,1.2265185,3340.4,3340.3,0.04272313]
[1721017647729,1.2575468,3340.7,3340.3,0.04272313]
[1721017647927,4.19863677,3340.6,3340.0,5.69458]
[1721017648126,2.26331678,3340.5,3340.0,5.69458]
[1721017648358,1.22653886,3340.4,3340.1,0.04287785]
[1721017648634,1.22653886,3340.3,3340.1,0.04287785]
[1721017648840,1.22653886,3340.2,3340.1,0.04287785]
[1721017649046,1.2575468,3340.6,3340.1,0.04287785]
[1721017649215,2.26332878,3340.5,3340.1,0.04287785]
[1721017649548,3.52087558,3340.4,3340.1,0.04287785]
[1721017649699,2.26332878,3340.3,3339.9,2.69466]
[1721017649906,1.22654169,3340.2,3339.9,2.69466]
[1721017650104,1.22654169,3340.1,3339.9,2.69466]
[1721017650408,1.2575468,3340.4,3339.7,2.69479]
[1721017650631,2.26346899,3340.3,3339.7,2.69479]
[1721017650813,1.2575468,3340.4,3339.7,2.69479]
[1721017650814,1.22661378,3340.2,3339.7,2.69479]
[1721017651065,1.22663192,3340.1,3339.5,2.69497]
[1721017651264,2.26356934,3340.1,3339.5,2.69497]
[1721017651484,1.22663192,3340.0,3339.5,2.69497]
[1721017651666,1.22663192,3339.9,3339.3,2.69511]
[1721017651868,1.22663192,3339.9,3339.2,2.69523]
[1721017651869,1.22663192,3339.8,3339.4,2.69508]
[1721017652049,1.22663192,3339.7,3339.5,2.69501]
[1721017652248,3.51252091,3340.2,3339.5,2.69501]
[1721017652472,2.26363938,3340.1,3339.5,2.69501]
[1721017652790,1.22669657,3340.0,3339.5,2.69501]
[1721017652993,1.22669657,3339.9,3339.5,2.69501]
[1721017653291,3.51252091,3340.2,3339.5,2.69501]
[1721017653461,2.26363813,3340.1,3339.5,2.69501]
[1721017653666,1.22668612,3340.0,3339.6,0.04022853]
[1721017653878,1.25742091,3340.4,3339.8,2.69475]
[1721017654186,1.22660236,3340.3,3339.9,0.04017599]
[1721017654390,1.22660236,3340.2,3339.9,0.04017599]
[1721017654597,1.25627227,3340.5,3340.0,2.69461]
[1721017654803,2.3246,3340.6,3340.0,2.73476848]
[1721017657977,2.3246,3340.6,3340.1,2.69451]
[1721017658156,1.25609914,3340.7,3340.5,2.6942]
[1721017658373,0.31325988,3341.0,3340.6,2.73411343]
[1721017658580,1.03665475,3340.9,3340.6,2.73411343]
[1721017658860,0.31325988,3341.0,3340.6,2.73411343]
[1721017659265,1.56935902,3341.0,3340.6,2.73411343]
[1721017659455,1.56935902,3341.0,3340.6,2.69406]
[1721017659692,1.56935902,3341.0,3339.7,7.35]
[1721017659693,1.03670649,3340.9,3340.2,2.69441]
[1721017659891,1.25609914,3340.9,3340.3,2.69435]
[1721017660182,1.25609914,3340.9,3340.3,2.73445595]
[1721017660612,1.12318817,3341.0,3340.3,2.73445595]
[1721017660896,1.56929266,3341.0,3340.3,2.73445595]
[1721017661114,2.29271742,3340.9,3340.3,2.73445595]
[1721017661264,1.03668464,3340.8,3340.3,2.73445595]
[1721017661595,1.25603278,3340.9,3340.3,2.73445595]
[1721017661772,2.29278632,3340.8,3340.3,2.69435]
[1721017661975,1.25603278,3340.9,3340.4,0.03998151]
[1721017662207,1.03671639,3340.8,3340.3,2.69435]
[1721017662405,1.25603278,3340.9,3340.5,0.039964]
[1721017662608,1.03672433,3340.8,3340.3,2.69435]
[1721017662907,1.25603278,3340.9,3340.6,0.03998749]
[1721017663070,1.0367218,3340.8,3340.4,2.69426]
[1721017663269,1.25603278,3340.9,3340.7,0.03996999]
[1721017663470,1.03672568,3340.8,3340.4,2.69426]
[1721017663696,1.25603278,3340.9,3340.4,2.69426]
[1721017663898,1.03671765,3340.8,3340.6,2.69412]
[1721017664081,1.56929266,3341.0,3340.6,2.69412]
[1721017664303,1.03669326,3340.9,3340.6,2.69412]
[1721017664618,1.56931429,3341.0,3340.6,2.69412]
[1721017664785,1.0366966,3340.9,3340.6,2.69412]
[1721017664990,1.56931429,3341.0,3340.6,2.69412]
[1721017665179,2.639,3340.8,3340.2,2.69444]
[1721017665888,2.639,3340.8,3340.3,2.69436]
[1721017666213,1.0367601,3340.7,3340.3,2.69436]
[1721017666420,2.639,3340.8,3340.3,2.69436]
[1721017669067,1.03673027,3340.7,3340.3,2.69436]
[1721017669374,2.639,3340.8,3340.3,2.69436]
[1721017669599,1.03673053,3340.7,3340.3,2.69436]
[1721017669837,2.639,3340.8,3340.3,2.69436]
[1721017670506,1.03672281,3340.7,3340.3,2.69436]
[1721017670955,2.639,3340.8,3340.3,2.69436]
[1721017671106,1.03672269,3340.7,3340.3,2.69436]
[1721017671437,2.639,3340.8,3340.3,2.69436]
[1721017671637,1.03672984,3340.7,3340.3,2.69436]
[1721017671818,2.639,3340.8,3340.3,2.69436]
[1721017672144,1.03672983,3340.7,3340.3,2.69436]
[1721017672351,2.639,3340.8,3340.3,2.69436]
[1721017672352,1.099,3340.4,3340.3,2.69436]
[1721017673529,1.099,3340.4,3340.3,2.73438575]
[1721017676149,1.25639561,3340.8,3340.3,0.04002575]
[1721017676446,1.099,3340.5,3340.4,2.69424]
[1721017676650,1.099,3340.5,3340.4,2.73429104]
[1721017677921,1.099,3340.5,3340.4,0.04005104]
[1721017678323,1.099,3340.5,3340.2,2.69442]
[1721017678553,1.25639561,3340.8,3340.4,0.04005104]
[1721017678735,1.25639561,3340.8,3340.2,2.69442]
[1721017678736,1.099,3340.5,3340.3,0.04006855]
[1721017679040,1.099,3340.4,3340.2,2.69442]
[1721017679662,1.099,3340.4,3340.3,2.69436]
[1721017682160,1.25639561,3340.9,3340.6,2.69405]
[1721017682329,1.099,3340.7,3340.6,2.69405]
[1721017684666,1.099,3340.7,3340.6,5.38817]
[1721017685071,0.31325988,3341.0,3340.3,0.05986402]
[1721017685378,1.5,3343.6,3340.3,0.05986402]
[1721017685379,1.57130854,3341.9,3341.8,5.3863]
[1721017685531,0.3131809,3342.1,3341.5,2.3224]
[1721017685731,1.25704683,3342.6,3342.5,2.69259]
[1721017685932,1.25704683,3342.6,3341.9,2.69307]
[1721017685933,1.57021781,3343.1,3343.0,2.69219]
[1721017686155,0.31317098,3343.1,3343.0,2.69219]
[1721017686381,2.3347,3343.7,3343.0,2.69219]
[1721017686382,1.25704683,3343.7,3343.6,2.6917]
[1721017686533,1.25704683,3344.1,3343.8,2.69154]
[1721017686732,1.57016663,3344.3,3343.8,2.69154]
[1721017686733,0.31313989,3343.9,3343.8,2.69154]
[1721017687675,0.31313989,3343.9,3343.4,2.69186]
[1721017687878,0.29471399,3343.8,3343.2,2.69202]
[1721017688229,0.29471399,3343.8,3343.0,2.69218]
[1721017688230,2.634,3343.7,3343.0,2.69218]
[1721017688437,2.634,3343.7,3343.3,0.03895244]
[1721017688654,2.634,3343.7,3342.6,3.0]
[1721017688655,2.634,3343.7,3342.9,2.69225]
[1721017688888,2.70877323,3343.7,3343.4,0.03893496]
[1721017689176,2.70877323,3343.7,3342.9,2.69225]
[1721017689177,0.33166271,3343.6,3342.9,2.69225]
[1721017689379,0.33166271,3343.6,3342.6,3.0]
[1721017689380,2.60666271,3343.6,3343.5,0.03891749]
[1721017689536,2.634,3343.4,3342.7,2.69239]
[1721017690066,2.634,3343.4,3342.8,0.03903983]
[1721017692247,2.634,3343.4,3342.9,0.03902235]
[1721017692464,0.07478266,3343.3,3342.1,2.69291]
[1721017692681,2.4418,3342.7,3341.9,2.69306]
[1721017692901,2.4418,3342.7,3341.3,2.69349]
[1721017692902,2.4418,3342.7,3341.8,2.69313]
[1721017693204,5.6258,3343.2,3342.0,2.69298]
[1721017693399,5.6258,3343.2,3342.1,0.0598332]
[1721017693555,0.56258,3343.1,3342.5,2.69253]
[1721017693754,0.56258,3343.1,3342.1,2.6929]
[1721017694080,2.634,3342.8,3342.2,2.69281]
[1721017694662,2.634,3342.8,3342.0,2.69299]
[1721017695593,2.634,3342.8,3341.6,5.69331]
[1721017695894,2.3791,3342.6,3341.6,5.69331]
[1721017696106,2.3791,3342.6,3341.5,2.69339]
[1721017696391,2.634,3342.0,3341.5,2.69339]
[1721017697259,2.634,3342.0,3341.6,2.69331]
[1721017698086,2.634,3342.4,3341.6,2.69331]
[1721017698895,3.25750939,3342.4,3341.5,2.69338]
[1721017699559,3.25750939,3342.4,3341.3,2.69355]
[1721017699759,3.25750939,3342.4,3341.4,2.69347]
[1721017700064,2.634,3342.0,3341.4,2.69347]
[1721017700708,0.62350939,3342.4,3341.1,2.6937]
[1721017700709,2.634,3341.6,3341.1,2.6937]
[1721017701005,2.634,3341.6,3341.2,2.69362]
[1721017702723,2.77525335,3341.9,3341.2,2.69362]
[1721017703617,3.58546169,3341.9,3341.3,0.03940806]
[1721017703837,3.58546169,3341.9,3341.0,2.69378]
[1721017704140,3.58546169,3341.9,3341.4,0.03939057]
[1721017704349,3.58546169,3341.9,3341.0,2.69378]
[1721017704551,3.58546169,3341.9,3340.6,0.3131668]
[1721017704552,3.58546169,3341.9,3341.5,0.03936951]
[1721017704837,3.58546169,3341.9,3341.6,0.03935201]
[1721017705003,3.58546169,3341.9,3341.1,2.69372]
[1721017705205,2.77525335,3341.9,3341.2,0.039422]
[1721017706248,2.77525335,3341.9,3341.2,2.733042]
[1721017706547,0.31305335,3341.9,3341.8,8.07945]
[1721017706712,2.4476,3343.5,3342.7,2.69242]
[1721017706912,2.4476,3343.5,3342.8,0.03907981]
[1721017707251,2.634,3343.2,3342.8,0.03907981]
[1721017707539,2.634,3343.2,3341.7,2.69317]
[1721017707540,2.634,3343.2,3342.4,2.69259]
[1721017707754,2.634,3343.2,3342.5,2.69256]
[1721017707914,2.634,3343.2,3342.6,0.05982685]
[1721017708345,2.634,3343.2,3342.7,0.0389495]
[1721017708704,2.4476,3343.5,3342.8,2.69234]
[1721017708904,0.31300825,3343.9,3342.9,0.09873745]
[1721017709246,2.3967,3344.8,3344.0,2.69137]
[1721017709412,0.23967,3344.7,3344.0,2.69137]
[1721017709617,0.23967,3344.7,3344.1,0.03867992]
[1721017709618,2.87367,3344.7,3344.1,0.03867992]
[1721017710504,2.87367,3344.7,3344.0,2.69137]
[1721017710800,2.87367,3344.7,3344.1,0.0360878]
[1721017711004,2.94842342,3344.7,3344.1,0.0360878]
[1721017711217,0.80358734,3344.6,3343.7,2.69155]
[1721017711419,0.80358734,3344.6,3343.8,0.03490922]
[1721017712065,0.80358734,3344.6,3343.8,2.72641922]
[1721017714164,0.80358734,3344.6,3343.8,0.03490922]
[1721017714323,2.634,3344.3,3343.8,0.03490922]
[1721017714531,2.634,3344.3,3343.6,3.0]
[1721017715060,2.634,3344.3,3343.7,0.03112164]
[1721017715363,3.30185073,3344.3,3343.7,0.03112164]
[1721017716639,2.634,3344.3,3343.7,0.03112164]
[1721017716847,2.87367,3344.7,3343.9,2.69145]
[1721017717025,2.87367,3344.7,3344.0,0.03106923]
[1721017717856,2.87367,3344.7,3343.7,2.69158]
[1721017718038,1.065178,3344.6,3343.8,0.03110417]
[1721017718262,2.634,3344.3,3343.8,0.03110417]
[1721017718570,2.634,3344.3,3343.3,2.69192]
[1721017718571,2.941,3344.2,3343.4,3.0]
[1721017718734,2.941,3344.2,3343.9,0.03082336]
[1721017718933,0.826607,3344.1,3343.4,3.0]
[1721017719238,2.941,3344.2,3343.4,3.0]
[1721017719239,2.391,3344.2,3343.5,2.69178]
[1721017719437,2.391,3344.2,3343.6,0.03091668]
[1721017719752,2.391,3344.2,3343.4,5.69185]
[1721017720070,2.634,3343.9,3343.0,2.69215]
[1721017720282,3.41310064,3343.9,3343.1,2.72310406]
[1721017720483,3.41310064,3343.9,3343.1,0.03100406]